fUSD/lending_fUSD_20240614
["ID","MTS","AMOUNT","RATE_DAILY","PERIOD"]
[329470775,1718382714653,-208.80077387,0.00024108,2]
[329470776,1718382714701,-500.0,0.00024109,3]
[329470777,1718382714714,-503.23602539,0.00024109,3]
[329470778,1718382714726,-550.02250703,0.00024109,3]
[329470779,1718382714759,-500.0,0.00024109,3]
[329470780,1718382714805,-500.0,0.00024109,3]
[329470781,1718382714824,-500.0,0.00024109,3]
[329470782,1718382714876,-500.0,0.00024109,3]
[329470783,1718382714888,-505.64516401,0.00024109,3]
[329470784,1718382714901,-473.98350658,0.00024109,3]
[329470785,1718382714917,-500.0,0.00024109,3]
[329470786,1718382714930,-500.0,0.00024109,3]
[329470787,1718382714943,-500.0,0.00024109,3]
[329470788,1718382714964,-500.0,0.00024109,3]
[329470789,1718382714981,-277.34158199,0.00024109,3]
[329470790,1718382715048,-500.0,0.00024109,3]
[329470791,1718382715062,-500.0,0.00024109,3]
[329470792,1718382715128,-500.0,0.00024109,3]
[329470793,1718382715153,-2513.5,0.00024109,3]
[329470794,1718382715165,-500.0,0.00024109,3]
[329470795,1718382715177,-500.0,0.00024109,3]
[329470796,1718382715198,-500.0,0.00024109,3]
[329470797,1718382715214,-500.0,0.00024109,3]
[329470798,1718382715229,-500.0,0.00024109,3]
[329470799,1718382715243,-500.0,0.00024109,3]
[329470800,1718382715262,-500.0,0.00024109,3]
[329470801,1718382715276,-719.42,0.00024109,3]
[329470802,1718382715308,-500.0,0.00024109,3]
[329470803,1718382715345,-3991.97,0.00024109,3]
[329470804,1718382715364,-623.99242014,0.00024109,3]
[329470805,1718382715399,-500.0,0.00024109,3]
[329470806,1718382715426,-500.0,0.00024109,3]
[329470807,1718382715441,-500.0,0.00024109,3]
[329470808,1718382715482,-500.0,0.00024109,3]
[329470809,1718382715512,-500.0,0.00024109,3]
[329470810,1718382715528,-500.0,0.00024109,3]
[329470811,1718382715539,-3357.78,0.00024109,3]
[329470812,1718382715577,-500.0,0.00024109,3]
[329470813,1718382715616,-1455.39,0.00024109,3]
[329470814,1718382715641,-586.55670545,0.00024109,3]
[329470815,1718382715702,-2695.33,0.00024109,3]
[329470816,1718382715732,-500.0,0.00024109,3]
[329470817,1718382715757,-500.0,0.00024109,3]
[329470818,1718382715785,-500.0,0.00024109,3]
[329470819,1718382715801,-500.0,0.00024109,3]
[329470820,1718382715822,-587.38,0.00024109,3]
[329470821,1718382715846,-3621.35,0.00024109,3]
[329470822,1718382715877,-500.0,0.00024109,3]
[329470823,1718382715893,-462.68207862,0.00024109,3]
[329470824,1718382715908,-505.02,0.00024109,3]
[329470825,1718382715926,-500.0,0.00024109,3]
[329470826,1718382715943,-12900.66,0.00024109,3]
[329470827,1718382715993,-2226.1,0.00024109,3]
[329470828,1718382716032,-704.82,0.00024109,3]
[329470829,1718382716069,-500.0,0.00024109,3]
[329470830,1718382716109,-500.0,0.00024109,3]
[329470831,1718382716145,-500.0,0.00024109,3]
[329470832,1718382716172,-223.83419394,0.00024109,3]
[329470833,1718382716200,-500.0,0.00024109,3]
[329470834,1718382716240,-154.01676949,0.00024115,2]
[329470835,1718382716284,-3614.014,0.00024119,2]
[329470836,1718382716301,-154.08209522,0.00024128,2]
[329470837,1718382716318,-272.14266912,0.00024151,2]
[329470838,1718382716355,-5373.36603126,0.00024175,2]
[329470839,1718382716366,-5373.36603126,0.00024178,2]
[329470840,1718382716379,-5373.36603126,0.00024182,2]
[329470841,1718382716398,-154.08209522,0.00024202,2]
[329470842,1718382716414,-170.01053089,0.00024203,2]
[329470843,1718382716453,-5373.36603126,0.00024211,2]
[329470844,1718382716466,-5373.36603126,0.0002422,2]
[329470845,1718382716504,-2593.42866723,0.00024244,2]
[329470846,1718382716547,-5373.36603126,0.00024255,2]
[329470847,1718382716572,-8041.64378594,0.00024283,2]
[329470848,1718382716584,-371.42320115,0.00024302,2]
[329470849,1718382716601,-159.60705426,0.00024304,2]
[329470850,1718382716613,-170.01053089,0.00024313,2]
[329470851,1718382716625,-1830.0,0.00024316,2]
[329470852,1718382716652,-34972.2000065,0.00024363,2]
[329470853,1718382716669,-303092.400056,0.00024373,2]
[329470854,1718382716694,-155.0,0.00024382,2]
[329470855,1718382716713,-500.0,0.00024382,3]
[329470856,1718382716727,-500.0,0.00024382,3]
[329470857,1718382716755,-826.82,0.00024382,3]
[329470858,1718382716767,-500.0,0.00024382,3]
[329470859,1718382717002,-500.0,0.00024383,3]
[329470860,1718382717019,-500.0,0.00024383,3]
[329470861,1718382717033,-500.0,0.00024383,3]
[329470862,1718382717045,-500.0,0.00024383,3]
[329470863,1718382717093,-500.0,0.00024383,3]
[329470864,1718382717112,-500.0,0.00024383,3]
[329470865,1718382717126,-553.08562176,0.00024383,3]
[329470866,1718382717145,-500.0,0.00024383,3]
[329470867,1718382717170,-500.0,0.00024383,3]
[329470868,1718382717186,-500.0,0.00024383,3]
[329470869,1718382717207,-2513.5,0.00024383,3]
[329470870,1718382717221,-500.0,0.00024383,3]
[329470871,1718382717233,-500.0,0.00024383,3]
[329470872,1718382717251,-500.0,0.00024383,3]
[329470873,1718382717266,-500.0,0.00024383,3]
[329470874,1718382717277,-500.0,0.00024383,3]
[329470875,1718382717297,-500.0,0.00024383,3]
[329470876,1718382717314,-500.0,0.00024383,3]
[329470877,1718382717337,-719.42,0.00024383,3]
[329470878,1718382717361,-500.0,0.00024383,3]
[329470879,1718382717402,-3991.97,0.00024383,3]
[329470880,1718382717420,-500.0,0.00024383,3]
[329470881,1718382717431,-500.0,0.00024383,3]
[329470882,1718382717443,-500.0,0.00024383,3]
[329470883,1718382717456,-500.0,0.00024383,3]
[329470884,1718382717478,-500.0,0.00024383,3]
[329470885,1718382717496,-500.0,0.00024383,3]
[329470886,1718382717508,-3357.78,0.00024383,3]
[329470887,1718382717532,-500.0,0.00024383,3]
[329470888,1718382717552,-1455.39,0.00024383,3]
[329470889,1718382717564,-391.91144955,0.00024383,2]
[329470890,1718382717575,-2695.33,0.00024383,3]
[329470891,1718382717586,-500.0,0.00024383,3]
[329470892,1718382717604,-500.0,0.00024383,3]
[329470893,1718382717615,-500.0,0.00024383,3]
[329470894,1718382717627,-500.0,0.00024383,3]
[329470895,1718382717639,-587.38,0.00024383,3]
[329470896,1718382717664,-3621.35,0.00024383,3]
[329470897,1718382717677,-500.0,0.00024383,3]
[329470898,1718382717688,-505.02,0.00024383,3]
[329470899,1718382717701,-500.0,0.00024383,3]
[329470900,1718382717714,-12900.66,0.00024383,3]
[329470901,1718382717728,-2226.1,0.00024383,3]
[329470902,1718382717739,-500.0,0.00024383,3]
[329470903,1718382717757,-704.82,0.00024383,3]
[329470904,1718382717769,-500.0,0.00024383,3]
[329470905,1718382717781,-500.0,0.00024383,3]
[329470906,1718382717796,-500.0,0.00024383,3]
[329470907,1718382717807,-272.14266912,0.00024397,2]
[329470908,1718382717818,-615.0,0.00024421,2]
[329470909,1718382717829,-441.0,0.00024421,2]
[329470910,1718382717839,-170.01053089,0.0002445,2]
[329470911,1718382717853,-151.99268138,0.00024485,2]
[329470912,1718382717864,-154.29927158,0.00024507,2]
[329470913,1718382717874,-154.29927158,0.00024543,2]
[329470914,1718382717899,-272.14266912,0.00024544,2]
[329470915,1718382717911,-272.14266912,0.00024582,2]
[329470916,1718382717942,-170.01053089,0.00024583,2]
[329470917,1718382717954,-151.99268138,0.00024616,2]
[329470918,1718382717967,-11657.4000022,0.00024618,2]
[329470919,1718382717980,-170.01053089,0.00024636,2]
[329470920,1718382717991,-11657.4000022,0.00024637,2]
[329470921,1718382718023,-67145.31546941,0.00024647,2]
[329470922,1718382718248,-4614.96,0.00024647,2]
[329470923,1718382718266,-641.37290133,0.00024647,2]
[329470924,1718382718284,-8421.46922863,0.00024647,2]
[329470925,1718382718448,-500.0,0.00024109,3]
[329470926,1718382718459,-469.45652537,0.00024382,3]
[329470927,1718382718472,-30.54347463,0.00024382,3]
[329470928,1718382718483,-886.24,0.00024382,3]
[329470929,1718382718510,-500.0,0.00024383,3]
[329470930,1718382718524,-1951.14740453,0.00024647,2]
[329470931,1718382718541,-1565.31339387,0.00024647,2]
[329470932,1718382718558,-279.76760129,0.00024647,2]
[329470933,1718382718571,-867.54875347,0.00024647,2]
[329470934,1718382718587,-455.63471653,0.00024647,2]
[329470935,1718382722207,-10178.51133808,0.00024647,2]
[329470936,1718382722234,-10925.454796,0.00024647,2]
[329470937,1718382722250,-472.04,0.00024647,2]
[329470938,1718382722263,-250.48725582,0.00024647,2]
[329470939,1718382722297,-418.54007673,0.00024647,2]
[329470940,1718382722353,-553.94826407,0.00024647,2]
[329470941,1718382722372,-136063.88884524,0.00024647,2]
[329470942,1718382722398,-1468.0,0.00024656,2]
[329470943,1718382722562,-500.0,0.00024656,3]
[329470944,1718382722589,-500.0,0.00024656,3]
[329470945,1718382722613,-826.82,0.00024656,3]
[329470946,1718382722664,-886.24,0.00024656,3]
[329470947,1718382722690,-500.0,0.00024657,3]
[329470948,1718382722718,-500.0,0.00024657,3]
[329470949,1718382722734,-500.0,0.00024657,3]
[329470950,1718382722782,-500.0,0.00024657,3]
[329470951,1718382722836,-500.0,0.00024657,3]
[329470952,1718382722855,-500.0,0.00024657,3]
[329470953,1718382722892,-500.0,0.00024657,3]
[329470954,1718382722905,-500.0,0.00024657,3]
[329470955,1718382722921,-500.0,0.00024657,3]
[329470956,1718382722992,-2513.5,0.00024657,3]
[329470957,1718382723044,-500.0,0.00024657,3]
[329470958,1718382723057,-500.0,0.00024657,3]
[329470959,1718382723072,-500.0,0.00024657,3]
[329470960,1718382723083,-327.24620595,0.00024657,3]
[329470961,1718382723170,-500.0,0.00024657,3]
[329470962,1718382723190,-500.0,0.00024657,3]
[329470963,1718382723222,-500.0,0.00024657,3]
[329470964,1718382723248,-719.42,0.00024657,3]
[329470965,1718382723269,-212.16632357,0.00024657,3]
[329470966,1718382723300,-3991.97,0.00024657,3]
[329470967,1718382723312,-430.73,0.00024657,3]
[329470968,1718382723348,-500.0,0.00024657,3]
[329470969,1718382723366,-500.0,0.00024657,3]
[329470970,1718382723380,-500.0,0.00024657,3]
[329470971,1718382723417,-569.87,0.00024657,3]
[329470972,1718382723476,-500.0,0.00024657,3]
[329470973,1718382723513,-3357.78,0.00024657,3]
[329470974,1718382723530,-500.0,0.00024657,3]
[329470975,1718382723555,-1455.39,0.00024657,3]
[329470976,1718382723574,-2695.33,0.00024657,3]
[329470977,1718382723605,-500.0,0.00024657,3]
[329470978,1718382723616,-500.0,0.00024657,3]
[329470979,1718382723644,-500.0,0.00024657,3]
[329470980,1718382723658,-587.38,0.00024657,3]
[329470981,1718382723690,-3621.35,0.00024657,3]
[329470982,1718382723736,-505.02,0.00024657,3]
[329470983,1718382723753,-274.86395275,0.00024657,3]
[329470984,1718382723768,-12900.66,0.00024657,3]
[329470985,1718382723829,-2226.1,0.00024657,3]
[329470986,1718382723870,-500.0,0.00024657,3]
[329470987,1718382723885,-704.82,0.00024657,3]
[329470988,1718382723897,-500.0,0.00024657,3]
[329470989,1718382723911,-500.0,0.00024657,3]
[329470990,1718382723924,-500.0,0.00024657,3]
[329470991,1718382723945,-500.0,0.00024657,3]
[329470992,1718382723963,-1368.12285,0.0002468,2]
[329470993,1718382723974,-371.42320115,0.00024689,2]
[329470994,1718382723988,-799.0,0.000247,2]
[329470995,1718382724013,-8041.64378583,0.00024721,2]
[329470996,1718382724041,-154.29927158,0.00024746,2]
[329470997,1718382724076,-154.01676949,0.00024749,2]
[329470998,1718382724109,-170.01053089,0.00024761,2]
[329470999,1718382724139,-159.60705426,0.00024814,2]
[329471000,1718382724155,-155.25371207,0.00024816,2]
[329471001,1718382724184,-272.14266912,0.00024848,2]
[329471002,1718382724212,-673.41541736,0.00024853,2]
[329471003,1718382724233,-272.14266912,0.00024869,2]
[329471004,1718382724281,-155.25371207,0.0002489,2]
[329471005,1718382724298,-154.29927158,0.00024897,2]
[329471006,1718382724316,-180.48036902,0.00024899,2]
[329471007,1718382724329,-998.86,0.000249,2]
[329471008,1718382724355,-6803.82836973,0.000249,2]
[329471009,1718382724385,-155.0,0.000249,2]
[329471010,1718382724397,-151.99268138,0.00024904,2]
[329471011,1718382724426,-371.42320115,0.0002491,2]
[329471012,1718382724450,-272.14266912,0.00024911,2]
[329471013,1718382724514,-178.88184074,0.00024925,2]
[329471014,1718382724547,-168.44386042,0.00024929,2]
[329471015,1718382724573,-485.25416785,0.00024929,2]
[329471016,1718382724605,-187.0,0.0002493,2]
[329471017,1718382724615,-500.0,0.0002493,3]
[329471018,1718382724626,-500.0,0.0002493,3]
[329471019,1718382724654,-826.82,0.0002493,3]
[329471020,1718382724687,-886.24,0.0002493,3]
[329471021,1718382724718,-500.0,0.00024931,3]
[329471022,1718382724730,-500.0,0.00024931,3]
[329471023,1718382724769,-500.0,0.00024931,3]
[329471024,1718382724788,-500.0,0.00024931,3]
[329471025,1718382724802,-500.0,0.00024931,3]
[329471026,1718382724841,-500.0,0.00024931,3]
[329471027,1718382724862,-500.0,0.00024931,3]
[329471028,1718382724876,-500.0,0.00024931,3]
[329471029,1718382724910,-500.0,0.00024931,3]
[329471030,1718382724952,-500.0,0.00024931,3]
[329471031,1718382724967,-2513.5,0.00024931,3]
[329471032,1718382724978,-500.0,0.00024931,3]
[329471033,1718382724990,-500.0,0.00024931,3]
[329471034,1718382725008,-500.0,0.00024931,3]
[329471035,1718382725021,-500.0,0.00024931,3]
[329471036,1718382725035,-500.0,0.00024931,3]
[329471037,1718382725046,-500.0,0.00024931,3]
[329471038,1718382725081,-719.42,0.00024931,3]
[329471039,1718382725093,-3991.97,0.00024931,3]
[329471040,1718382725156,-500.0,0.00024931,3]
[329471041,1718382725180,-314.95922948,0.00024931,3]
[329471042,1718382725236,-500.0,0.00024931,3]
[329471043,1718382725248,-500.0,0.00024931,3]
[329471044,1718382725260,-3357.78,0.00024931,3]
[329471045,1718382725272,-500.0,0.00024931,3]
[329471046,1718382725286,-1455.39,0.00024931,3]
[329471047,1718382725316,-2695.33,0.00024931,3]
[329471048,1718382725336,-500.0,0.00024931,3]
[329471049,1718382725354,-500.0,0.00024931,3]
[329471050,1718382725377,-500.0,0.00024931,3]
[329471051,1718382725389,-587.38,0.00024931,3]
[329471052,1718382725436,-3621.35,0.00024931,3]
[329471053,1718382725461,-505.02,0.00024931,3]
[329471054,1718382725486,-12900.66,0.00024931,3]
[329471055,1718382725507,-2226.1,0.00024931,3]
[329471056,1718382725518,-704.82,0.00024931,3]
[329471057,1718382725529,-178.4366429,0.00024931,3]
[329471058,1718382725543,-500.0,0.00024931,3]
[329471059,1718382725582,-500.0,0.00024931,3]
[329471060,1718382725609,-500.0,0.00024931,3]
[329471061,1718382725619,-272.14266912,0.00024969,2]
[329471062,1718382725649,-151.82,0.00024973,2]
[329471063,1718382725661,-166.63300067,0.00024988,2]
[329471064,1718382725684,-151.82,0.0002499,2]
[329471065,1718382725696,-151.82,0.0002499,2]
[329471066,1718382725707,-151.82,0.0002499,2]
[329471067,1718382725725,-151.82,0.0002499,2]
[329471068,1718382725736,-151.82,0.0002499,2]
[329471069,1718382725758,-151.82,0.0002499,2]
[329471070,1718382725778,-151.82,0.0002499,2]
[329471071,1718382725808,-8769.3327944,0.00025,2]
[329471072,1718382725854,-150.0,0.00025,30]
[329471073,1718382725874,-500.0862548,0.00025,3]
[329471074,1718382725891,-160.0,0.00025,2]
[329471075,1718382725931,-397557.83514756,0.00025,2]
[329471076,1718382725961,-3602.44257493,0.00025,2]
[329471077,1718382726001,-20219.99783234,0.00025,2]
[329471078,1718382726015,-418.9295176,0.00025,2]
[329471079,1718382726029,-811.05669613,0.00025,2]
[329471080,1718382726044,-319.5176318,0.00025,2]
[329471081,1718382726076,-3115.05753739,0.00025,2]
[329471082,1718382727508,-500.0,0.00024109,3]
[329471083,1718382727532,-111.01483907,0.00024109,3]
[329471084,1718382727557,-680.9102,0.00024109,3]
[329471085,1718382727572,-676.09496093,0.00024109,3]
[329471086,1718382727584,-509.42118281,0.00024382,3]
[329471087,1718382727604,-500.0,0.00024382,3]
[329471088,1718382727614,-500.0,0.00024383,3]
[329471089,1718382727631,-1468.02,0.00024383,3]
[329471090,1718382727656,-500.0,0.00024656,3]
[329471091,1718382727668,-500.0,0.00024657,3]
[329471092,1718382727692,-500.0,0.0002493,3]
[329471093,1718382727703,-500.0,0.00024931,3]
[329471094,1718382727714,-138693.14877286,0.00025,2]
[329471095,1718382727736,-10121.09933885,0.00025,2]
[329471096,1718382727752,-1648.95132,0.00025,2]
[329471097,1718382727784,-3135.10340248,0.00025,2]
[329471098,1718382727809,-1912.11003802,0.00025,2]
[329471099,1718382727847,-65700.00000002,0.00025,2]
[329471100,1718382727865,-623.44199861,0.00025,2]
[329471101,1718382727893,-321.89,0.00025,2]
[329471102,1718382727938,-4483.45609934,0.00025,2]
[329471103,1718382728020,-702191.62810564,0.00025,2]
[329471104,1718382728040,-500.0,0.00025,3]
[329471105,1718382728065,-500.0,0.00025,3]
[329471106,1718382728109,-500.0,0.00025,3]
[329471107,1718382728138,-504.08,0.00025,3]
[329471108,1718382728159,-6271.0592459,0.00025,2]
[329471109,1718382728174,-50000.0,0.00025,6]
[329471110,1718382728192,-4535.48247912,0.00025,3]
[329471111,1718382728208,-154.75099068,0.00025,2]
[329471112,1718382728220,-155.50629914,0.00025,2]
[329471113,1718382728252,-155.22934508,0.00025,2]
[329471114,1718382728283,-1282.3005787,0.00025,2]
[329471115,1718382728302,-156.75915456,0.00025,2]
[329471116,1718382728320,-283.03027793,0.00025,2]
[329471117,1718382728372,-155.82597021,0.00025,2]
[329471118,1718382728383,-159.7897293,0.00025,2]
[329471119,1718382728399,-327.58121069,0.00025,2]
[329471120,1718382728449,-14535.87242779,0.00025,2]
[329471121,1718382728476,-155.35166321,0.00025,2]
[329471122,1718382728491,-709.48190145,0.00025,2]
[329471123,1718382728513,-15416.20642404,0.00025,2]
[329471124,1718382728525,-460.83958973,0.00025,2]
[329471125,1718382728537,-226.19393545,0.00025,2]
[329471126,1718382728548,-327.43018614,0.00025,2]
[329471127,1718382728568,-2071.68795707,0.00025,2]
[329471128,1718382728755,-2211.51265927,0.00025,2]
[329471129,1718382728769,-2869.54351012,0.00025,2]
[329471130,1718382728785,-13808.36373772,0.00025,7]
[329471131,1718382728808,-583.0,0.00025,2]
[329471132,1718382728829,-1350.0,0.00025,2]
[329471133,1718382728869,-1500.0,0.00025,2]
[329471134,1718382728925,-150.0,0.00025,4]
[329471135,1718382728937,-151.0,0.00025,7]
[329471136,1718382728980,-151.0,0.00025,7]
[329471137,1718382729006,-150.0,0.00025,4]
[329471138,1718382729027,-150.0,0.00025,4]
[329471139,1718382729041,-150.0,0.00025,4]
[329471140,1718382729070,-150.0,0.00025,4]
[329471141,1718382729102,-150.0,0.00025,4]
[329471142,1718382729236,-150.0,0.00025,4]
[329471143,1718382729251,-150.0,0.00025,4]
[329471144,1718382729304,-253.83185,0.00025,2]
[329471145,1718382729328,-151.0,0.00025,7]
[329471146,1718382729373,-151.0,0.00025,7]
[329471147,1718382729412,-154.75879082,0.00025028,2]
[329471148,1718382729506,-151.99268138,0.00025086,2]
[329471149,1718382729532,-272.14266912,0.00025104,2]
[329471150,1718382729544,-154.29927158,0.00025119,2]
[329471151,1718382729589,-1368.12285,0.0002512,2]
[329471152,1718382729606,-8041.64378583,0.00025159,2]
[329471153,1718382729637,-155.25371207,0.0002516,2]
[329471154,1718382729681,-342.07,0.00025188,2]
[329471155,1718382729777,-178.28,0.00025204,3]
[329471156,1718382729800,-500.0,0.00025204,3]
[329471157,1718382729847,-826.82,0.00025204,3]
[329471158,1718382729861,-886.24,0.00025204,3]
[329471159,1718382729878,-500.0,0.00025204,3]
[329471160,1718382729889,-500.0,0.00025205,3]
[329471161,1718382729911,-500.0,0.00025205,3]
[329471162,1718382729927,-376.71437927,0.00025205,3]
[329471163,1718382729986,-500.0,0.00025205,3]
[329471164,1718382730049,-500.0,0.00025205,3]
[329471165,1718382730066,-500.0,0.00025205,3]
[329471166,1718382730106,-500.0,0.00025205,3]
[329471167,1718382730176,-155.38215532,0.00025205,3]
[329471168,1718382730193,-500.0,0.00025205,3]
[329471169,1718382730248,-500.0,0.00025205,3]
[329471170,1718382730263,-500.0,0.00025205,2]
[329471171,1718382730312,-500.0,0.00025205,3]
[329471172,1718382730352,-500.0,0.00025205,3]
[329471173,1718382730392,-500.0,0.00025205,3]
[329471174,1718382730413,-500.0,0.00025205,3]
[329471175,1718382730425,-500.0,0.00025205,3]
[329471176,1718382730439,-500.0,0.00025205,3]
[329471177,1718382730451,-500.0,0.00025205,3]
[329471178,1718382730496,-500.0,0.00025205,3]
[329471179,1718382730558,-647.49,0.00025205,3]
[329471180,1718382730578,-500.0,0.00025205,3]
[329471181,1718382730591,-500.0,0.00025205,3]
[329471182,1718382730617,-500.0,0.00025205,3]
[329471183,1718382730628,-484.89809112,0.00025205,3]
[329471184,1718382730640,-500.0,0.00025205,2]
[329471185,1718382730676,-741.65,0.00025205,3]
[329471186,1718382730766,-500.0,0.00025205,3]
[329471187,1718382730783,-1039.58,0.00025205,3]
[329471188,1718382730800,-500.0,0.00025205,3]
[329471189,1718382730813,-500.0,0.00025205,3]
[329471190,1718382730836,-446.55543924,0.00025205,3]
[329471191,1718382730904,-500.0,0.00025205,3]
[329471192,1718382730935,-500.0,0.00025205,3]
[329471193,1718382730987,-500.0,0.00025205,3]
[329471194,1718382730998,-500.0,0.00025205,3]
[329471195,1718382731016,-604.31318995,0.00025205,3]
[329471196,1718382731066,-500.0,0.00025205,3]
[329471197,1718382731089,-500.0,0.00025205,3]
[329471198,1718382731100,-500.0,0.00025205,3]
[329471199,1718382731137,-606.88,0.00025205,3]
[329471200,1718382731191,-500.0,0.00025205,3]
[329471201,1718382731232,-500.0,0.00025205,3]
[329471202,1718382731246,-500.0,0.00025205,3]
[329471203,1718382731270,-500.0,0.00025205,3]
[329471204,1718382731285,-558.61224452,0.00025205,3]
[329471205,1718382731312,-673.4,0.00025205,3]
[329471206,1718382731325,-500.0,0.00025205,3]
[329471207,1718382731337,-593.08,0.00025205,3]
[329471208,1718382731364,-500.0,0.00025205,3]
[329471209,1718382731390,-669.21,0.00025205,3]
[329471210,1718382731402,-506.9018783,0.00025205,3]
[329471211,1718382731500,-736.96,0.00025205,3]
[329471212,1718382731541,-500.0,0.00025205,3]
[329471213,1718382731621,-500.0,0.00025205,3]
[329471214,1718382731633,-507.96,0.00025205,3]
[329471215,1718382731648,-500.0,0.00025205,3]
[329471216,1718382731660,-500.0,0.00025205,3]
[329471217,1718382731696,-500.0,0.00025205,3]
[329471218,1718382731719,-854.23,0.00025205,3]
[329471219,1718382731732,-500.0,0.00025205,3]
[329471220,1718382731744,-500.0,0.00025205,3]
[329471221,1718382731758,-500.0,0.00025205,3]
[329471222,1718382731769,-500.0,0.00025205,3]
[329471223,1718382731797,-500.0,0.00025205,3]
[329471224,1718382731808,-500.0,0.00025205,3]
[329471225,1718382731873,-670.88,0.00025205,3]
[329471226,1718382731886,-574.95,0.00025205,3]
[329471227,1718382731917,-500.0,0.00025205,3]
[329471228,1718382731929,-500.0,0.00025205,3]
[329471229,1718382731943,-500.0,0.00025205,3]
[329471230,1718382731990,-500.0,0.00025205,3]
[329471231,1718382732032,-1734.14,0.00025205,3]
[329471232,1718382732043,-500.0,0.00025205,3]
[329471233,1718382732057,-500.0,0.00025205,3]
[329471234,1718382732106,-500.0,0.00025205,3]
[329471235,1718382732118,-500.0,0.00025205,3]
[329471236,1718382732148,-673.58,0.00025205,3]
[329471237,1718382732163,-633.38,0.00025205,3]
[329471238,1718382732174,-500.0,0.00025205,3]
[329471239,1718382732188,-1004.01,0.00025205,3]
[329471240,1718382732199,-597.68,0.00025205,3]
[329471241,1718382732213,-733.92,0.00025205,3]
[329471242,1718382732230,-500.0,0.00025205,3]
[329471243,1718382732251,-500.0,0.00025205,3]
[329471244,1718382732284,-510.37,0.00025205,3]
[329471245,1718382732306,-500.0,0.00025205,3]
[329471246,1718382732317,-500.0,0.00025205,3]
[329471247,1718382732329,-521.38,0.00025205,3]
[329471248,1718382732342,-500.0,0.00025205,3]
[329471249,1718382732359,-500.0,0.00025205,3]
[329471250,1718382732369,-500.0,0.00025205,3]
[329471251,1718382732380,-500.0,0.00025205,3]
[329471252,1718382732392,-500.0,0.00025205,3]
[329471253,1718382732403,-500.0,0.00025205,3]
[329471254,1718382732412,-618.42,0.00025205,3]
[329471255,1718382732446,-493.87455993,0.00025205,3]
[329471256,1718382732461,-500.0,0.00025205,3]
[329471257,1718382732491,-500.0,0.00025205,3]
[329471258,1718382732517,-500.0,0.00025205,3]
[329471259,1718382732586,-500.0,0.00025205,3]
[329471260,1718382732597,-500.0,0.00025205,3]
[329471261,1718382732610,-500.0,0.00025205,3]
[329471262,1718382732651,-640.05,0.00025205,3]
[329471263,1718382732677,-590.79,0.00025205,3]
[329471264,1718382732690,-500.0,0.00025205,3]
[329471265,1718382732724,-500.0,0.00025205,3]
[329471266,1718382732743,-500.0,0.00025205,3]
[329471267,1718382732767,-500.0,0.00025205,3]
[329471268,1718382732778,-899.12,0.00025205,3]
[329471269,1718382732792,-500.0,0.00025205,3]
[329471270,1718382732803,-500.0,0.00025205,3]
[329471271,1718382732818,-619.45,0.00025205,3]
[329471272,1718382732835,-511.68,0.00025205,3]
[329471273,1718382732846,-500.0,0.00025205,3]
[329471274,1718382732859,-501.34,0.00025205,3]